Workbook

Sheet AHU
B1: Класификация на информацията:
B2: Ниво 0 , TLP-WHITE
A5: Б Ю Д Ж Е Т
A6: на АГЕНЦИЯТА ЗА ХОРАТА С УВРЕЖДАНИЯ
A7: ЗА 2026 ГОДИНА
B9: (евро)
A11: П О К А З А Т Е Л И | B11: СУМА
A14: I. ПРИХОДИ, ПОМОЩИ И ДАРЕНИЯ | B14: =B17 -> 10200
A17: Неданъчни приходи | B17: =B18+B19+B20+B21 -> 10200
A18: Държавни такси
A19: Приходи и доходи от собственост
A20: Глоби, санкции и наказателни лихви | B20: 10200
A21: Други приходи
A23: II. РАЗХОДИ | B23: =B25 -> 5466800
A25: Общо разходи | B25: =+B26+B34 -> 5466800
A26: Текущи разходи | B26: =B27+B28+B29+B30+B31+B32 -> 5441200
A27: Персонал | B27: 584000
A28: Издръжка и други текущи разходи | B28: 86000
A29: Платени данъци, такси и административни санкции | B29: 3600
A30: Текущи трансфери, обезщетения и помощи за домакинствата
A31: Субсидии и други текущи трансфери за нефинансови предприятия | B31: 4563100
A32: Субсидии и други текущи трансфери за юридически лица с нестопанска цел | B32: 204500
A34: Капиталови разходи | B34: =B35 -> 25600
A35: Придобиване на дълготрайни активи и основен ремонт | B35: 25600
A37: НАТУРАЛНИ ПОКАЗАТЕЛИ
A38: Щатни бройки | B38: 24
A40: III. БЮДЖЕТНИ ВЗАИМООТНОШЕНИЯ (ТРАНСФЕРИ) - НЕТО (+/-) | B40: =B42+B45+B48+B51 -> 5456600
A42: Трансфери между бюджета на бюджетна организация и ЦБ (нето) | B42: =B43 -> 0
A43: - трансфери от/за ЦБ (+/-)
A45: Трансфери между бюджети (нето) | B45: =B46 -> 0
A46: - получени трансфери (+)
A48: Трансфери между бюджети и сметки за средствата от ЕС (нето) | B48: =B49 -> 0
A49: - предоставени трансфери (-)
A51: Разчети за извършени плащания в СЕБРА (+/-) | B51: =B52+B53 -> 5456600
A52: - разчети с подведомствени разпоредители за плащания в СЕБРА (-)
A53: - разчети с първостепенен разпоредител за плащания в СЕБРА (+) | B53: =B23-B14 -> 5456600
A56: IV. Максимален размер на ангажиментите за разходи, които могат да бъдат поети през 2026 г. | B56: =B28+B30+B31+B32+B35 -> 4879200
A59: V. Максимален размер на новите задължения за разходи, които могат да бъдат натрупани през 2026 г. | B59: =B28+B30+B31+B32+B35 -> 4879200

Sheet IA GIT (hidden)
B1: Класификация на информацията:
B2: Ниво 1, [TLP-GREEN]
A5: Б Ю Д Ж Е Т
A6: на ИА "ГЛАВНА ИНСПЕКЦИЯ ПО ТРУДА"
A7: ЗА 2026 ГОДИНА
B9: (евро)
A11: П О К А З А Т Е Л И | B11: СУМА
A14: I. ПРИХОДИ, ПОМОЩИ И ДАРЕНИЯ | B14: =B17 -> 3853800 | D14: =B14+B40-B23 -> 0
A17: Неданъчни приходи | B17: =B18+B19+B20+B21 -> 3853800
A18: Държавни такси
A19: Приходи и доходи от собственост
A20: Глоби, санкции и наказателни лихви | B20: =4509600+1004300 -> 5513900
A21: Други приходи | B21: -1660100
A23: II. РАЗХОДИ | B23: =B25 -> 14850000
A25: Общо разходи | B25: =+B26+B34 -> 14850000
A26: Текущи разходи | B26: =B27+B28+B29+B30+B31+B32 -> 14671000
A27: Персонал | B27: =13425900+39300 -> 13465200
A28: Издръжка и други текущи разходи | B28: 1154700
A29: Платени данъци, такси и административни санкции | B29: 51100
A30: Текущи трансфери, обезщетения и помощи за домакинствата
A31: Субсидии и други текущи трансфери за нефинансови предприятия
A32: Субсидии и други текущи трансфери за юридически лица с нестопанска цел
A34: Капиталови разходи | B34: =B35 -> 179000
A35: Придобиване на дълготрайни активи и основен ремонт | B35: 179000
A37: НАТУРАЛНИ ПОКАЗАТЕЛИ
A38: Щатни бройки | B38: 650
A40: III. БЮДЖЕТНИ ВЗАИМООТНОШЕНИЯ (ТРАНСФЕРИ) - НЕТО (+/-) | B40: =B42+B45+B48+B51 -> 10996200
A42: Трансфери между бюджета на бюджетна организация и ЦБ (нето) | B42: =B43 -> 0
A43: - трансфери от/за ЦБ (+/-)
A45: Трансфери между бюджети (нето) | B45: =B46 -> 0
A46: - получени трансфери (+)
A48: Трансфери между бюджети и сметки за средствата от ЕС (нето) | B48: =B49 -> 0
A49: - предоставени трансфери (-)
A51: Разчети за извършени плащания в СЕБРА (+/-) | B51: =B52+B53 -> 10996200
A52: - разчети с подведомствени разпоредители за плащания в СЕБРА (-)
A53: - разчети с първостепенен разпоредител за плащания в СЕБРА (+) | B53: =B23-B14 -> 10996200
A56: IV. Максимален размер на ангажиментите за разходи, които могат да бъдат поети през 2026 г. | B56: =B28+B30+B31+B32+B35 -> 1333700
A59: V. Максимален размер на новите задължения за разходи, които могат да бъдат натрупани през 2026 г. | B59: =B28+B30+B31+B32+B35 -> 1333700

Sheet DAZD (hidden)
B1: Класификация на информацията:
B2: Ниво 1, [TLP-GREEN]
A5: Б Ю Д Ж Е Т
A6: на ДЪРЖАВНАТА АГЕНЦИЯ ЗА ЗАКРИЛА НА ДЕТЕТО
A7: ЗА 2026 ГОДИНА
B9: (евро)
A11: П О К А З А Т Е Л И | B11: СУМА
A14: I. ПРИХОДИ, ПОМОЩИ И ДАРЕНИЯ | B14: =B17 -> 500 | D14: =B14+B40-B23 -> 0
A17: Неданъчни приходи | B17: =B18+B19+B20+B21 -> 500
A18: Държавни такси
A19: Приходи и доходи от собственост | B19: 500
A20: Глоби, санкции и наказателни лихви
A21: Други приходи
A23: II. РАЗХОДИ | B23: =B25 -> 1968800
A25: Общо разходи | B25: =+B26+B34 -> 1968800
A26: Текущи разходи | B26: =B27+B28+B29+B30+B31+B32 -> 1950900
A27: Персонал | B27: =1402800+45400 -> 1448200
A28: Издръжка и други текущи разходи | B28: =243000+253000 -> 496000
A29: Платени данъци, такси и административни санкции | B29: 6700
A30: Текущи трансфери, обезщетения и помощи за домакинствата
A31: Субсидии и други текущи трансфери за нефинансови предприятия
A32: Субсидии и други текущи трансфери за юридически лица с нестопанска цел
A34: Капиталови разходи | B34: =B35 -> 17900
A35: Придобиване на дълготрайни активи и основен ремонт | B35: 17900
A37: НАТУРАЛНИ ПОКАЗАТЕЛИ
A38: Щатни бройки | B38: 65
A40: III. БЮДЖЕТНИ ВЗАИМООТНОШЕНИЯ (ТРАНСФЕРИ) - НЕТО (+/-) | B40: =B42+B45+B48+B51 -> 1968300
A42: Трансфери между бюджета на бюджетна организация и ЦБ (нето) | B42: =B43 -> 0
A43: - трансфери от/за ЦБ (+/-)
A45: Трансфери между бюджети (нето) | B45: =B46 -> 0
A46: - получени трансфери (+)
A48: Трансфери между бюджети и сметки за средствата от ЕС (нето) | B48: =B49 -> 0
A49: - предоставени трансфери (-)
A51: Разчети за извършени плащания в СЕБРА (+/-) | B51: =B52+B53 -> 1968300
A52: - разчети с подведомствени разпоредители за плащания в СЕБРА (-)
A53: - разчети с първостепенен разпоредител за плащания в СЕБРА (+) | B53: =B23-B14 -> 1968300
A56: IV. Максимален размер на ангажиментите за разходи, които могат да бъдат поети през 2026 г. | B56: =B28+B30+B31+B32+B35 -> 513900
A59: V. Максимален размер на новите задължения за разходи, които могат да бъдат натрупани през 2026 г. | B59: =B28+B30+B31+B32+B35 -> 513900

Sheet FSZ (hidden)
B1: Класификация на информацията:
B2: Ниво 1, [TLP-GREEN]
A5: Б Ю Д Ж Е Т
A6: на ФОНД "СОЦИАЛНА ЗАКРИЛА"
A7: ЗА 2026 ГОДИНА
B9: (евро)
A11: П О К А З А Т Е Л И | B11: СУМА
A14: I. ПРИХОДИ, ПОМОЩИ И ДАРЕНИЯ | B14: =B17 -> 0 | D14: =B14+B40-B23 -> 0
A17: Неданъчни приходи | B17: =B18+B19+B20+B21 -> 0
A18: Държавни такси
A19: Приходи и доходи от собственост
A20: Глоби, санкции и наказателни лихви
A21: Други приходи
A23: II. РАЗХОДИ | B23: =B25 -> 3173100
A25: Общо разходи | B25: =+B26+B34 -> 3173100
A26: Текущи разходи | B26: =B27+B28+B29+B30+B31+B32 -> 3168000
A27: Персонал | B27: =374300+11800 -> 386100
A28: Издръжка и други текущи разходи | B28: 41300
A29: Платени данъци, такси и административни санкции | B29: 100
A30: Текущи трансфери, обезщетения и помощи за домакинствата | B30: 2740500
A31: Субсидии и други текущи трансфери за нефинансови предприятия
A32: Субсидии и други текущи трансфери за юридически лица с нестопанска цел
A34: Капиталови разходи | B34: =B35 -> 5100
A35: Придобиване на дълготрайни активи и основен ремонт | B35: 5100
A37: НАТУРАЛНИ ПОКАЗАТЕЛИ
A38: Щатни бройки | B38: 12
A40: III. БЮДЖЕТНИ ВЗАИМООТНОШЕНИЯ (ТРАНСФЕРИ) - НЕТО (+/-) | B40: =B42+B45+B48+B51 -> 3173100
A42: Трансфери между бюджета на бюджетна организация и ЦБ (нето) | B42: =B43 -> 0
A43: - трансфери от/за ЦБ (+/-)
A45: Трансфери между бюджети (нето) | B45: =B46 -> 0
A46: - получени трансфери (+)
A48: Трансфери между бюджети и сметки за средствата от ЕС (нето) | B48: =B49 -> 0
A49: - предоставени трансфери (-)
A51: Разчети за извършени плащания в СЕБРА (+/-) | B51: =B52+B53 -> 3173100
A52: - разчети с подведомствени разпоредители за плащания в СЕБРА (-)
A53: - разчети с първостепенен разпоредител за плащания в СЕБРА (+) | B53: =B23 -> 3173100
A56: IV. Максимален размер на ангажиментите за разходи, които могат да бъдат поети през 2026 г. | B56: =B28+B30+B31+B32+B35 -> 2786900
A59: V. Максимален размер на новите задължения за разходи, които могат да бъдат натрупани през 2026 г. | B59: =B28+B30+B31+B32+B35 -> 2786900

Sheet FUT (hidden)
B1: Класификация на информацията:
B2: Ниво 1, [TLP-GREEN]
A5: Б Ю Д Ж Е Т
A6: на ФОНД "УСЛОВИЯ НА ТРУД"
A7: ЗА 2026 ГОДИНА
B9: (евро)
A11: П О К А З А Т Е Л И | B11: СУМА
A14: I. ПРИХОДИ, ПОМОЩИ И ДАРЕНИЯ | B14: =B17 -> 2000 | D14: =B14+B40-B23 -> 0
A17: Неданъчни приходи | B17: =B18+B19+B20+B21 -> 2000
A18: Държавни такси
A19: Приходи и доходи от собственост
A20: Глоби, санкции и наказателни лихви
A21: Други приходи | B21: 2000
A23: II. РАЗХОДИ | B23: =B25 -> 2300600
A25: Общо разходи | B25: =+B26+B34 -> 2300600
A26: Текущи разходи | B26: =B27+B28+B29+B30+B31+B32 -> 2298000
A27: Персонал | B27: =217300+6500 -> 223800
A28: Издръжка и други текущи разходи | B28: =29000+2045200 -> 2074200
A29: Платени данъци, такси и административни санкции
A30: Текущи трансфери, обезщетения и помощи за домакинствата
A31: Субсидии и други текущи трансфери за нефинансови предприятия
A32: Субсидии и други текущи трансфери за юридически лица с нестопанска цел
A34: Капиталови разходи | B34: =B35 -> 2600
A35: Придобиване на дълготрайни активи и основен ремонт | B35: 2600
A37: НАТУРАЛНИ ПОКАЗАТЕЛИ
A38: Щатни бройки | B38: 6
A40: III. БЮДЖЕТНИ ВЗАИМООТНОШЕНИЯ (ТРАНСФЕРИ) - НЕТО (+/-) | B40: =B42+B45+B48+B51 -> 2298600
A42: Трансфери между бюджета на бюджетна организация и ЦБ (нето) | B42: =B43 -> 0
A43: - трансфери от/за ЦБ (+/-)
A45: Трансфери между бюджети (нето) | B45: =B46 -> 2045200
A46: - получени трансфери (+) | B46: 2045200
A48: Трансфери между бюджети и сметки за средствата от ЕС (нето) | B48: =B49 -> 0
A49: - предоставени трансфери (-)
A51: Разчети за извършени плащания в СЕБРА (+/-) | B51: =B52+B53 -> 253400
A52: - разчети с подведомствени разпоредители за плащания в СЕБРА (-)
A53: - разчети с първостепенен разпоредител за плащания в СЕБРА (+) | B53: =B23-B14-B45 -> 253400
A56: IV. Максимален размер на ангажиментите за разходи, които могат да бъдат поети през 2026 г. | B56: =B28+B30+B31+B32+B35 -> 2076800
A59: V. Максимален размер на новите задължения за разходи, които могат да бъдат натрупани през 2026 г. | B59: =B28+B30+B31+B32+B35 -> 2076800

Sheet CRCHRRI (hidden)
B1: Класификация на информацията:
B2: Ниво 1, [TLP-GREEN]
A5: Б Ю Д Ж Е Т
A6: на ЦЕНТЪРА ЗА РАЗВИТИЕ НА ЧОВЕШКИТЕ РЕСУРСИ И РЕГИОНАЛНИ ИНИЦИАТИВИ
A7: ЗА 2026 ГОДИНА
B9: (евро)
A11: П О К А З А Т Е Л И | B11: СУМА
A14: I. ПРИХОДИ, ПОМОЩИ И ДАРЕНИЯ | B14: =B17 -> 12000 | D14: =B14+B40-B23 -> 0
A17: Неданъчни приходи | B17: =B18+B19+B20+B21 -> 12000
A18: Държавни такси
A19: Приходи и доходи от собственост | B19: 12000
A20: Глоби, санкции и наказателни лихви
A21: Други приходи
A23: II. РАЗХОДИ | B23: =B25 -> 3522100
A25: Общо разходи | B25: =+B26+B34 -> 3522100
A26: Текущи разходи | B26: =B27+B28+B29+B30+B31+B32 -> 3318600
A27: Персонал | B27: =1409400+46900 -> 1456300
A28: Издръжка и други текущи разходи | B28: 498600
A29: Платени данъци, такси и административни санкции | B29: 40900
A30: Текущи трансфери, обезщетения и помощи за домакинствата | B30: 1322800
A31: Субсидии и други текущи трансфери за нефинансови предприятия
A32: Субсидии и други текущи трансфери за юридически лица с нестопанска цел
A34: Капиталови разходи | B34: =B35 -> 203500
A35: Придобиване на дълготрайни активи и основен ремонт | B35: 203500
A37: НАТУРАЛНИ ПОКАЗАТЕЛИ
A38: Щатни бройки | B38: 85
A40: III. БЮДЖЕТНИ ВЗАИМООТНОШЕНИЯ (ТРАНСФЕРИ) - НЕТО (+/-) | B40: =B42+B45+B48+B51 -> 3510100
A42: Трансфери между бюджета на бюджетна организация и ЦБ (нето) | B42: =B43 -> 0
A43: - трансфери от/за ЦБ (+/-)
A45: Трансфери между бюджети (нето) | B45: =B46 -> 0
A46: - получени трансфери (+)
A48: Трансфери между бюджети и сметки за средствата от ЕС (нето) | B48: =B49 -> 0
A49: - предоставени трансфери (-)
A51: Разчети за извършени плащания в СЕБРА (+/-) | B51: =B52+B53 -> 3510100
A52: - разчети с подведомствени разпоредители за плащания в СЕБРА (-)
A53: - разчети с първостепенен разпоредител за плащания в СЕБРА (+) | B53: =B23-B14 -> 3510100
A56: IV. Максимален размер на ангажиментите за разходи, които могат да бъдат поети през 2026 г. | B56: =B28+B30+B31+B32+B35 -> 2024900
A59: V. Максимален размер на новите задължения за разходи, които могат да бъдат натрупани през 2026 г. | B59: =B28+B35+B30+B31+B32 -> 2024900

Sheet NIPA (hidden)
B1: Класификация на информацията:
B2: Ниво 1, [TLP-GREEN]
A5: Б Ю Д Ж Е Т
A6: на НАЦИОНАЛНИЯ ИНСТИТУТ ЗА ПОМИРЕНИЕ И АРБИТРАЖ
A7: ЗА 2026 ГОДИНА
B9: (евро)
A11: П О К А З А Т Е Л И | B11: СУМА
A14: I. ПРИХОДИ, ПОМОЩИ И ДАРЕНИЯ | B14: =B17 -> 0 | D14: =B14+B40-B23 -> 0
A17: Неданъчни приходи | B17: =B18+B19+B20+B21 -> 0
A18: Държавни такси
A19: Приходи и доходи от собственост
A20: Глоби, санкции и наказателни лихви
A21: Други приходи
A23: II. РАЗХОДИ | B23: =B25 -> 336600
A25: Общо разходи | B25: =+B26+B34 -> 336600
A26: Текущи разходи | B26: =B27+B28+B29+B30+B31+B32 -> 334100
A27: Персонал | B27: =267600+8500 -> 276100
A28: Издръжка и други текущи разходи | B28: 57700
A29: Платени данъци, такси и административни санкции | B29: 300
A30: Текущи трансфери, обезщетения и помощи за домакинствата
A31: Субсидии и други текущи трансфери за нефинансови предприятия
A32: Субсидии и други текущи трансфери за юридически лица с нестопанска цел
A34: Капиталови разходи | B34: =B35 -> 2500
A35: Придобиване на дълготрайни активи и основен ремонт | B35: 2500
A37: НАТУРАЛНИ ПОКАЗАТЕЛИ
A38: Щатни бройки | B38: 10
A40: III. БЮДЖЕТНИ ВЗАИМООТНОШЕНИЯ (ТРАНСФЕРИ) - НЕТО (+/-) | B40: =B42+B45+B48+B51 -> 336600
A42: Трансфери между бюджета на бюджетна организация и ЦБ (нето) | B42: =B43 -> 0
A43: - трансфери от/за ЦБ (+/-)
A45: Трансфери между бюджети (нето) | B45: =B46 -> 0
A46: - получени трансфери (+)
A48: Трансфери между бюджети и сметки за средствата от ЕС (нето) | B48: =B49 -> 0
A49: - предоставени трансфери (-)
A51: Разчети за извършени плащания в СЕБРА (+/-) | B51: =B52+B53 -> 336600
A52: - разчети с подведомствени разпоредители за плащания в СЕБРА (-) | B52: 0
A53: - разчети с първостепенен разпоредител за плащания в СЕБРА (+) | B53: =B23-B14 -> 336600
A56: IV. Максимален размер на ангажиментите за разходи, които могат да бъдат поети през 2026 г. | B56: =B28+B30+B31+B32+B35 -> 60200
A59: V. Максимален размер на новите задължения за разходи, които могат да бъдат натрупани през 2026 г. | B59: =B28+B30+B31+B32+B35 -> 60200
